[Event "7th Cattolica Open-A 2020"]
[Site "Cattolica"]
[Date "2020.09.06"]
[Round "7.10"]
[White "Alanic, Xavier"]
[Black "Schloffer, Jasmin-Denise"]
[Result "1-0"]
[ECO "A36"]
[WhiteElo "2249"]
[BlackElo "2110"]
[Annotator "RC"]
[PlyCount "99"]
[EventDate "2020.08.31"]
[EventType "swiss"]
[EventCountry "ITA"]
[SourceTitle "playchess.com"]
[Source "ChessBase"]
[SourceQuality "1"]
[TimeControl "5400+30"]

1. c4 {[%emt 0:02:26]} c5 {[%emt 0:00:00]} 2. Nc3 {[%emt 0:00:24]} Nc6 {[%emt 0:00:00]} 3. g3 {[%emt 0:00:07]} g6 {[%emt 0:00:00]} 4. Bg2 {[%emt 0:00:06]} Bg7 {[%emt 0:00:06]} 5. e4 {[%emt 0:00:18]} e5 {[%emt 0:00:48]} 6. a3 {[%emt 0:00:27]} d6 {[%emt 0:00:55]} 7. d3 {[%emt 0:00:15]} Nge7 {[%emt 0:00:12]} 8. Rb1 {[%emt 0:00:17]} a5 {[%emt 0:00:27]} 9. Nge2 {[%emt 0:00:22]} O-O {[%emt 0:00:21]} 10. O-O {[%emt 0:00:25]} f5 {[%emt 0:01:48]} 11. f4 {[%emt 0:00:28]} Rb8 {[%emt 0:01:14]} 12. Be3 {[%emt 0:00:41]} Be6 {[%emt 0:05:12]} 13. fxe5 {[%emt 0:01:42]} Nxe5 {[%emt 0:02:56]} 14. Nf4 {[%emt 0:02:04]} Bf7 {[%emt 0:02:14]} 15. h3 {[%emt 0:00:59]} b6 {[%emt 0:05:13]} 16. Qd2 {[%emt 0:03:25]} Qd7 {[%emt 0:03:41]} 17. Kh2 {[%emt 0:00:44]} h6 {[%emt 0:15:57]} 18. b3 {[%emt 0:05:01]} g5 {[%emt 0:12:42]} 19. Nfe2 {[%emt 0:02:56]} Bg6 {[%emt 0:03:32]} 20. Rbd1 {[%emt 0:02:23]} N5c6 {[%emt 0:07:41]} 21. d4 {[%emt 0:02:15]} Qe8 {[%emt 0:02:24]} 22. Bg1 {[%emt 0:04:52]} Rd8 {[%emt 0:08:59]} 23. exf5 {[%emt 0:13:29]} Rxf5 {[%emt 0:00:50]} 24. Nb5 {[%emt 0:03:51]} Qf7 {[%emt 0:08:42]} 25. g4 {[%emt 0:02:11]} Rxf1 {[%emt 0:00:12]} 26. Rxf1 {[%emt 0:00:07]} Qe8 {[%emt 0:00:24]} 27. d5 {[%emt 0:04:03]} Be5+ {[%emt 0:01:40]} 28. Kh1 {[%emt 0:00:05]} Nb8 {[%emt 0:00:03]} 29. Nec3 {[%emt 0:00:40]} Qd7 {[%emt 0:00:59]} 30. Bh2 {[%emt 0:03:21]} Bxh2 {[%emt 0:03:40]} 31. Kxh2 {[%emt 0:00:19]} Rf8 {[%emt 0:00:02]} 32. Rxf8+ {[%emt 0:01:16]} Kxf8 {[%emt 0:00:04]} 33. Be4 {[%emt 0:00:30]} Qd8 {[%emt 0:04:20]} 34. h4 {[%emt 0:02:32]} Nd7 {[%emt 0:04:28]} 35. hxg5 {[%emt 0:01:29]} Ne5 {[%emt 0:00:14]} 36. Qf4+ {[%emt 0:00:27]} Kg8 {[%emt 0:00:13]} 37. Kg3 {[%emt 0:01:17]} h5 {[%emt 0:03:41]} 38. gxh5 {[%emt 0:06:21]} Bxh5 {[%emt 0:01:21]} 39. Qf6 {[%emt 0:00:30]} Qd7 {[%emt 0:01:07]} 40. Qe6+ {[%emt 0:00:33]} Qxe6 {[%emt 0:00:08]} 41. dxe6 {[%emt 0:00:04]} Bg4 {[%emt 0:00:00]} 42. Bd5 {[%emt 0:00:00]} Nf5+ {[%emt 0:00:00]} 43. Kg2 {[%emt 0:00:00]} Kf8 {[%emt 0:00:00]} 44. Na4 {[%emt 0:00:00]} Bd1 {[%emt 0:00:00]} 45. Nxb6 {[%emt 0:00:00]} Bxb3 {[%emt 0:00:00]} 46. Kf2 {[%emt 0:00:00]} Kg7 {[%emt 0:00:00]} 47. Ke1 {[%emt 0:01:50]} Kg6 {[%emt 0:00:29]} 48. Be4 {[%emt 0:00:33]} Kxg5 {[%emt 0:00:15]} 49. Bxf5 {[%emt 0:00:24]} Kf6 {[%emt 0:01:21]} 50. Nd5+ {[%emt 0:00:44]} 1-0

[Event "7th Cattolica Open-A 2020"]
[Site "Cattolica"]
[Date "2020.09.07"]
[Round "8.5"]
[White "Bettalli, Francesco"]
[Black "Alanic, Xavier"]
[Result "1/2-1/2"]
[ECO "B15"]
[WhiteElo "2206"]
[BlackElo "2249"]
[Annotator "ChessBase"]
[PlyCount "41"]
[EventDate "2020.08.31"]
[EventType "swiss"]
[EventCountry "ITA"]
[SourceTitle "playchess.com"]
[Source "ChessBase"]
[SourceQuality "1"]
[TimeControl "5400+30"]

1. e4 {[%emt 0:00:26]} c6 {[%emt 0:00:00]} 2. d4 {[%emt 0:00:07]} d5 {[%emt 0:00:00]} 3. Nd2 {[%emt 0:00:08]} dxe4 {[%emt 0:00:38]} 4. Nxe4 {[%emt 0:00:08]} Nf6 {[%emt 0:00:07]} 5. Nxf6+ {[%emt 0:00:08]} exf6 {[%emt 0:00:08]} 6. c3 {[%emt 0:00:29]} Bd6 {[%emt 0:01:01]} 7. Bd3 {[%emt 0:00:16]} Be6 {[%emt 0:00:51]} 8. Qc2 {[%emt 0:01:34]} Nd7 {[%emt 0:04:09]} 9. Ne2 {[%emt 0:00:42]} Qc7 {[%emt 0:00:17]} 10. c4 {[%emt 0:03:12]} c5 {[%emt 0:05:03]} 11. Be3 {[%emt 0:11:23]} cxd4 {[%emt 0:04:25]} 12. Nxd4 {[%emt 0:00:25]} Ne5 {[%emt 0:00:42]} 13. Nxe6 {[%emt 0:05:05]} Nxd3+ {[%emt 1:19:09]} 14. Qxd3 {[%emt 0:00:05]} fxe6 {[%emt 0:00:00]} 15. O-O-O {[%emt 0:05:55]} O-O-O {[%emt 0:00:00]} 16. Qe4 {[%emt 0:02:19]} Rhe8 {[%emt 0:00:00]} 17. Kb1 {[%emt 0:00:23]} f5 {[%emt 0:00:00]} 18. Qc2 {[%emt 0:01:46]} a6 {[%emt 0:00:00]} 19. h3 {[%emt 0:03:53]} g6 {[%emt 0:00:00]} 20. Bg5 {[%emt 0:00:45]} Be7 {[%emt 0:00:00]} 21. Bxe7 {[%emt 0:00:24]} 1/2-1/2

[Event "7th Cattolica Open-A 2020"]
[Site "Cattolica"]
[Date "2020.09.07"]
[Round "8.6"]
[White "Gallana, Marco"]
[Black "Degraeve, Remy"]
[Result "1-0"]
[ECO "D85"]
[WhiteElo "2195"]
[BlackElo "2349"]
[Annotator "ChessBase"]
[PlyCount "89"]
[EventDate "2020.08.31"]
[EventType "swiss"]
[EventCountry "ITA"]
[SourceTitle "playchess.com"]
[Source "ChessBase"]
[SourceQuality "1"]
[TimeControl "5400+30"]

1. d4 {[%emt 0:00:00]} Nf6 {[%emt 0:00:00]} 2. Nf3 {[%emt 0:00:00]} g6 {[%emt 0:00:00]} 3. c4 {[%emt 0:00:10]} Bg7 {[%emt 0:00:00]} 4. Nc3 {[%emt 0:00:22]} d5 {[%emt 0:00:00]} 5. cxd5 {[%emt 0:00:29]} Nxd5 {[%emt 0:00:00]} 6. e4 {[%emt 0:00:15]} Nxc3 {[%emt 0:00:00]} 7. bxc3 {[%emt 0:00:11]} c5 {[%emt 0:00:00]} 8. Be3 {[%emt 0:00:29]} Qa5 {[%emt 0:00:14]} 9. Qd2 {[%emt 0:00:26]} O-O {[%emt 0:00:10]} 10. Rc1 {[%emt 0:04:37]} Nd7 {[%emt 0:00:04]} 11. Bd3 {[%emt 0:01:32]} e5 {[%emt 0:01:07]} 12. d5 {[%emt 0:00:55]} f5 {[%emt 0:00:27]} 13. Bh6 {[%emt 0:03:22]} f4 {[%emt 0:07:34]} 14. Bxg7 {[%emt 0:07:21]} Kxg7 {[%emt 0:00:10]} 15. Rb1 {[%emt 0:00:40]} Qd8 {[%emt 0:02:00]} 16. O-O {[%emt 0:05:49]} g5 {[%emt 0:10:01]} 17. Bb5 {[%emt 0:10:46]} g4 {[%emt 0:01:35]} 18. Ne1 {[%emt 0:00:21]} Nf6 {[%emt 0:02:49]} 19. f3 {[%emt 0:08:32]} gxf3 {[%emt 0:03:44]} 20. Nxf3 {[%emt 0:03:16]} Qd6 {[%emt 0:07:39]} 21. Qe1 {[%emt 0:14:45]} a6 {[%emt 0:01:46]} 22. Bd3 {[%emt 0:00:27]} c4 {[%emt 0:00:10]} 23. Bc2 {[%emt 0:00:23]} Ng4 {[%emt 0:00:55]} 24. Qh4 {[%emt 0:02:57]} Re8 {[%emt 0:12:42]} 25. Ng5 {[%emt 0:20:41]} Qg6 {[%emt 0:07:15]} 26. Bd1 {[%emt 0:01:28]} Nf6 {[%emt 0:01:24]} 27. Rb6 {[%emt 0:00:44]} h6 {[%emt 0:09:45]} 28. Nh7 {[%emt 0:00:34]} Kxh7 {[%emt 0:01:00]} 29. Rxf6 {[%emt 0:00:09]} Qg5 {[%emt 0:00:26]} 30. Qxg5 {[%emt 0:00:12]} hxg5 {[%emt 0:00:02]} 31. Rb6 {[%emt 0:00:15]} Rb8 {[%emt 0:08:44]} 32. Ba4 {[%emt 0:00:14]} Rg8 {[%emt 0:01:14]} 33. Rfb1 {[%emt 0:00:47]} g4 {[%emt 0:04:26]} 34. R1b4 {[%emt 0:05:01]} Rg6 {[%emt 0:04:40]} 35. d6 {[%emt 0:01:31]} Rg7 {[%emt 0:01:26]} 36. Rxc4 {[%emt 0:00:27]} Be6 {[%emt 0:05:05]} 37. Rc7 {[%emt 0:00:10]} Rc8 {[%emt 0:00:54]} 38. Rxg7+ {[%emt 0:01:16]} Kxg7 {[%emt 0:00:04]} 39. d7 {[%emt 0:00:17]} Bxd7 {[%emt 0:00:37]} 40. Bxd7 {[%emt 0:00:08]} Rxc3 {[%emt 0:00:05]} 41. Bxg4 {[%emt 0:00:10]} Rc1+ {[%emt 0:00:18]} 42. Kf2 {[%emt 0:00:14]} Rc2+ {[%emt 0:00:01]} 43. Be2 {[%emt 0:00:20]} Rxa2 {[%emt 0:00:10]} 44. Rxb7+ {[%emt 0:00:12]} Kf6 {[%emt 0:00:04]} 45. Rb6+ {[%emt 0:00:09]} 1-0

[Event "7th Cattolica Open-A 2020"]
[Site "Cattolica"]
[Date "2020.09.07"]
[Round "8.8"]
[White "Kasioumis, Vasilios"]
[Black "Solomon, Kenny"]
[Result "1/2-1/2"]
[ECO "B90"]
[WhiteElo "2356"]
[BlackElo "2352"]
[Annotator "ChessBase"]
[PlyCount "115"]
[EventDate "2020.08.31"]
[EventType "swiss"]
[EventCountry "ITA"]
[SourceTitle "playchess.com"]
[Source "ChessBase"]
[SourceQuality "1"]
[TimeControl "5400+30"]

1. e4 {[%emt 0:00:00]} c5 {[%emt 0:07:20]} 2. Nf3 {[%emt 0:00:00]} d6 {[%emt 0:00:06]} 3. d4 {[%emt 0:00:00]} cxd4 {[%emt 0:00:05]} 4. Nxd4 {[%emt 0:00:00]} Nf6 {[%emt 0:00:05]} 5. Nc3 {[%emt 0:00:00]} a6 {[%emt 0:00:05]} 6. h3 {[%emt 0:00:00]} e5 {[%emt 0:00:05]} 7. Nde2 {[%emt 0:00:00]} h5 {[%emt 0:00:06]} 8. g3 {[%emt 0:00:13]} Be6 {[%emt 0:00:04]} 9. Bg2 {[%emt 0:00:15]} b5 {[%emt 0:00:05]} 10. Be3 {[%emt 0:07:00]} Nbd7 {[%emt 0:03:40]} 11. a4 {[%emt 0:05:23]} b4 {[%emt 0:00:17]} 12. Nd5 {[%emt 0:00:05]} Nxd5 {[%emt 0:00:17]} 13. exd5 {[%emt 0:00:06]} Bf5 {[%emt 0:00:06]} 14. O-O {[%emt 0:05:42]} Rc8 {[%emt 0:04:32]} 15. c3 {[%emt 0:00:21]} bxc3 {[%emt 0:00:33]} 16. Nxc3 {[%emt 0:00:06]} Be7 {[%emt 0:18:08]} 17. Qe2 {[%emt 0:12:42]} Qa5 {[%emt 0:14:13]} 18. f4 {[%emt 0:14:52]} Nc5 {[%emt 0:01:39]} 19. Bxc5 {[%emt 0:03:00]} Qxc5+ {[%emt 0:01:03]} 20. Kh2 {[%emt 0:00:11]} exf4 {[%emt 0:21:16]} 21. Rxf4 {[%emt 0:04:09]} Bg6 {[%emt 0:04:16]} 22. Ne4 {[%emt 0:17:22]} Qc7 {[%emt 0:03:45]} 23. Qxa6 {[%emt 0:02:06]} O-O {[%emt 0:00:05]} 24. Nc3 {[%emt 0:03:31]} Bg5 {[%emt 0:03:02]} 25. Rb4 {[%emt 0:01:55]} h4 {[%emt 0:04:21]} 26. gxh4 {[%emt 0:00:34]} Bf6 {[%emt 0:01:28]} 27. Qb6 {[%emt 0:05:37]} Qe7 {[%emt 0:00:19]} 28. Qf2 {[%emt 0:00:25]} Rfe8 {[%emt 0:07:01]} 29. a5 {[%emt 0:01:06]} Rxc3 {[%emt 0:01:20]} 30. bxc3 {[%emt 0:00:51]} Bxc3 {[%emt 0:00:01]} 31. Raa4 {[%emt 0:01:01]} Be1 {[%emt 0:01:19]} 32. Qf4 {[%emt 0:02:00]} Qe2 {[%emt 0:02:40]} 33. Rd4 {[%emt 0:03:27]} Bc3 {[%emt 0:01:35]} 34. Qxd6 {[%emt 0:02:45]} Qb2 {[%emt 0:01:25]} 35. Rab4 {[%emt 0:01:28]} Qf2 {[%emt 0:00:11]} 36. Qf4 {[%emt 0:01:30]} Qa2 {[%emt 0:00:01]} 37. d6 {[%emt 0:02:26]} Re2 {[%emt 0:00:39]} 38. Qf3 {[%emt 0:00:30]} Rf2 {[%emt 0:01:11]} 39. Qg3 {[%emt 0:00:29]} Bxb4 {[%emt 0:00:30]} 40. Rxb4 {[%emt 0:00:27]} Rd2 {[%emt 0:00:07]} 41. h5 {[%emt 0:00:00]} Bxh5 {[%emt 0:00:00]} 42. Qg5 {[%emt 0:00:00]} g6 {[%emt 0:00:00]} 43. Rb8+ {[%emt 0:00:00]} Kh7 {[%emt 0:01:12]} 44. d7 {[%emt 0:00:00]} Bf3 {[%emt 0:00:30]} 45. Qh4+ {[%emt 0:00:00]} Bh5 {[%emt 0:00:05]} 46. Qg3 {[%emt 0:00:33]} Qxa5 {[%emt 0:01:06]} 47. Rb7 {[%emt 0:02:15]} Qf5 {[%emt 0:00:21]} 48. d8=Q {[%emt 0:04:29]} Rxd8 {[%emt 0:00:07]} 49. Qc7 {[%emt 0:00:03]} Rf8 {[%emt 0:01:05]} 50. Ra7 {[%emt 0:02:15]} Kg8 {[%emt 0:00:55]} 51. Ra5 {[%emt 0:00:23]} Qc8 {[%emt 0:00:31]} 52. Qxc8 {[%emt 0:01:29]} Rxc8 {[%emt 0:00:00]} 53. Ra8 {[%emt 0:00:14]} Rxa8 {[%emt 0:00:06]} 54. Bxa8 {[%emt 0:00:05]} Kg7 {[%emt 0:00:04]} 55. Kg3 {[%emt 0:00:04]} Kf6 {[%emt 0:00:07]} 56. Bd5 {[%emt 0:00:34]} g5 {[%emt 0:01:04]} 57. h4 {[%emt 0:00:13]} gxh4+ {[%emt 0:01:01]} 58. Kxh4 {[%emt 0:00:05]} 1/2-1/2

[Event "7th Cattolica Open-A 2020"]
[Site "Cattolica"]
[Date "2020.09.07"]
[Round "8.9"]
[White "Bifulco, Michel"]
[Black "Le Goff, Damien"]
[Result "1/2-1/2"]
[ECO "A85"]
[WhiteElo "2251"]
[BlackElo "2281"]
[Annotator "ChessBase"]
[PlyCount "43"]
[EventDate "2020.08.31"]
[EventType "swiss"]
[EventCountry "ITA"]
[SourceTitle "playchess.com"]
[Source "ChessBase"]
[SourceQuality "1"]
[TimeControl "5400+30"]

1. d4 {[%emt 0:00:00]} f5 {[%emt 0:01:20]} 2. c4 {[%emt 0:00:00]} Nf6 {[%emt 0:00:16]} 3. Nc3 {[%emt 0:00:00]} d6 {[%emt 0:00:37]} 4. Bg5 {[%emt 0:00:13]} Nbd7 {[%emt 0:00:46]} 5. Qc2 {[%emt 0:00:13]} g6 {[%emt 0:00:25]} 6. h4 {[%emt 0:00:08]} c6 {[%emt 0:01:27]} 7. O-O-O {[%emt 0:01:43]} Bg7 {[%emt 0:04:26]} 8. Nh3 {[%emt 0:01:47]} Qa5 {[%emt 0:02:12]} 9. Nf4 {[%emt 0:06:46]} Nf8 {[%emt 0:00:20]} 10. h5 {[%emt 0:24:47]} Ne4 11. Nxe4 fxe4 {[%emt 0:05:14]} 12. h6 {[%emt 0:00:43]} Bxd4 {[%emt 0:00:58]} 13. Bxe7 Qxa2 {[%emt 0:00:51]} 14. Rxd4 {[%emt 0:14:49]} Qa1+ {[%emt 0:00:30]} 15. Kd2 {[%emt 0:00:43]} Qa5+ {[%emt 0:00:24]} 16. Qc3 {[%emt 0:02:17]} Qxc3+ {[%emt 0:01:37]} 17. Kxc3 {[%emt 0:00:03]} Kxe7 {[%emt 0:00:37]} 18. Rxe4+ {[%emt 0:44:48]} Kf6 {[%emt 0:11:54]} 19. Rd4 {[%emt 0:00:30]} Ke7 {[%emt 1:05:36]} 20. Re4+ {[%emt 0:00:00]} Kf6 {[%emt 0:00:00]} 21. Rd4 {[%emt 0:00:00]} Ke7 {[%emt 0:00:00]} 22. Re4+ {[%emt 0:00:00]} 1/2-1/2

[Event "7th Cattolica Open-A 2020"]
[Site "Cattolica"]
[Date "2020.09.07"]
[Round "8.10"]
[White "Colonetti, Fabio"]
[Black "Alanic, Mickael"]
[Result "0-1"]
[ECO "C60"]
[WhiteElo "2070"]
[BlackElo "2306"]
[Annotator "ChessBase"]
[PlyCount "126"]
[EventDate "2020.08.31"]
[EventType "swiss"]
[EventCountry "ITA"]
[SourceTitle "playchess.com"]
[Source "ChessBase"]
[SourceQuality "1"]
[TimeControl "5400+30"]

1. e4 {[%emt 0:00:00]} e5 {[%emt 0:00:05]} 2. Nf3 {[%emt 0:00:00]} Nc6 {[%emt 0:00:07]} 3. Bb5 {[%emt 0:00:06]} g6 {[%emt 0:00:32]} 4. d4 {[%emt 0:00:52]} exd4 {[%emt 0:00:25]} 5. Bg5 {[%emt 0:00:12]} Be7 {[%emt 0:00:10]} 6. Bxe7 {[%emt 0:00:07]} Qxe7 {[%emt 0:00:08]} 7. Bxc6 {[%emt 0:00:09]} dxc6 {[%emt 0:00:15]} 8. Qxd4 {[%emt 0:00:14]} Nf6 {[%emt 0:00:14]} 9. Nc3 {[%emt 0:00:14]} c5 {[%emt 0:14:58]} 10. Qe3 {[%emt 0:01:23]} Bd7 {[%emt 0:10:03]} 11. O-O-O {[%emt 0:03:11]} Bc6 {[%emt 0:04:23]} 12. Rhe1 {[%emt 0:06:36]} O-O {[%emt 0:15:02]} 13. e5 {[%emt 0:18:54]} Nd7 {[%emt 0:06:16]} 14. Nd5 {[%emt 0:15:31]} Bxd5 {[%emt 0:01:42]} 15. Rxd5 {[%emt 0:00:12]} Nb6 {[%emt 0:17:20]} 16. Rxc5 {[%emt 0:02:17]} c6 {[%emt 0:00:20]} 17. Qa3 {[%emt 0:18:31]} Rfd8 {[%emt 0:09:05]} 18. Rc3 {[%emt 0:01:12]} Qe6 {[%emt 0:01:47]} 19. Qb3 {[%emt 0:06:19]} Rd5 {[%emt 0:04:55]} 20. Rd3 {[%emt 0:02:33]} Qg4 {[%emt 0:02:13]} 21. Rxd5 {[%emt 0:04:25]} cxd5 {[%emt 0:00:08]} 22. Qe3 {[%emt 0:01:35]} Qxg2 {[%emt 0:06:17]} 23. e6 {[%emt 0:00:25]} f6 {[%emt 0:00:13]} 24. Nd4 {[%emt 0:12:45]} Re8 {[%emt 0:02:12]} 25. Qf4 {[%emt 0:01:03]} Qg5 {[%emt 0:00:50]} 26. Qxg5 {[%emt 0:00:18]} fxg5 {[%emt 0:00:05]} 27. Re5 {[%emt 0:01:03]} h6 {[%emt 0:00:27]} 28. b3 {[%emt 0:01:45]} Kg7 {[%emt 0:00:20]} 29. a4 {[%emt 0:00:44]} Kf6 {[%emt 0:00:30]} 30. Re3 {[%emt 0:00:10]} Ke7 {[%emt 0:00:48]} 31. Kd2 {[%emt 0:01:36]} Rf8 {[%emt 0:00:14]} 32. f3 {[%emt 0:00:30]} Rf4 {[%emt 0:01:34]} 33. c3 {[%emt 0:00:49]} Na8 {[%emt 0:00:37]} 34. a5 {[%emt 0:01:19]} a6 {[%emt 0:00:11]} 35. Ke2 {[%emt 0:00:00]} Nc7 {[%emt 0:00:11]} 36. Kf2 {[%emt 0:00:20]} Rf6 {[%emt 0:00:34]} 37. Rd3 {[%emt 0:00:38]} g4 {[%emt 0:02:10]} 38. Kg3 {[%emt 0:00:13]} gxf3 {[%emt 0:00:31]} 39. Nxf3 {[%emt 0:00:12]} Rxe6 {[%emt 0:00:11]} 40. Nh4 {[%emt 0:00:47]} Kd6 {[%emt 0:01:57]} 41. Ng2 {[%emt 0:00:36]} Kc5 {[%emt 0:00:00]} 42. Ne3 {[%emt 0:00:41]} Rd6 {[%emt 0:00:00]} 43. Kf4 {[%emt 0:00:00]} Rf6+ {[%emt 0:00:00]} 44. Kg3 {[%emt 0:00:00]} g5 {[%emt 0:00:00]} 45. Kg4 {[%emt 0:00:00]} Rf4+ {[%emt 0:00:00]} 46. Kg3 {[%emt 0:00:00]} h5 {[%emt 0:00:00]} 47. h3 {[%emt 0:00:00]} Re4 {[%emt 0:00:00]} 48. Nf5 {[%emt 0:00:00]} h4+ {[%emt 0:01:19]} 49. Kg2 {[%emt 0:00:00]} Ne6 {[%emt 0:00:28]} 50. b4+ {[%emt 0:00:06]} Kc4 {[%emt 0:03:13]} 51. Rf3 {[%emt 0:00:06]} Nf4+ {[%emt 0:00:00]} 52. Kf1 {[%emt 0:05:21]} Re6 {[%emt 0:00:00]} 53. Nd4 {[%emt 0:00:00]} Re5 {[%emt 0:00:00]} 54. Nc2 {[%emt 0:00:00]} Kb3 {[%emt 0:01:02]} 55. Nd4+ {[%emt 0:00:00]} Kc4 {[%emt 0:01:28]} 56. Nc2 {[%emt 0:00:00]} Nd3 {[%emt 0:00:30]} 57. Na3+ {[%emt 0:00:00]} Kxc3 {[%emt 0:00:00]} 58. Nb1+ {[%emt 0:00:13]} Kd4 {[%emt 0:00:00]} 59. Na3 {[%emt 0:00:44]} Re1+ {[%emt 0:00:00]} 60. Kg2 {[%emt 0:00:07]} Re2+ {[%emt 0:00:00]} 61. Kf1 {[%emt 0:00:30]} Ra2 {[%emt 0:00:23]} 62. Nb1 {[%emt 0:00:30]} Ra1 {[%emt 0:00:30]} 63. Ke2 {[%emt 0:00:30]} Nf4+ {[%emt 0:00:30]} 0-1

[Event "7th Cattolica Open-A 2020"]
[Site "Cattolica"]
[Date "2020.09.08"]
[Round "9.7"]
[White "Solomon, Kenny"]
[Black "Bifulco, Michel"]
[Result "1-0"]
[ECO "C60"]
[WhiteElo "2352"]
[BlackElo "2251"]
[Annotator "ChessBase"]
[PlyCount "51"]
[EventDate "2020.08.31"]
[EventType "swiss"]
[EventCountry "ITA"]
[SourceTitle "playchess.com"]
[Source "ChessBase"]
[SourceQuality "1"]
[TimeControl "5400+30"]

1. e4 {[%emt 0:05:27]} e5 {[%emt 0:00:00]} 2. Nf3 {[%emt 0:00:36]} Nc6 {[%emt 0:00:00]} 3. Bb5 {[%emt 0:00:06]} g6 {[%emt 0:00:02]} 4. O-O {[%emt 0:00:47]} Bg7 {[%emt 0:00:09]} 5. c3 {[%emt 0:00:04]} Nge7 {[%emt 0:00:10]} 6. d4 {[%emt 0:00:06]} exd4 {[%emt 0:00:06]} 7. cxd4 {[%emt 0:00:04]} a6 {[%emt 0:00:06]} 8. Ba4 {[%emt 0:00:30]} O-O {[%emt 0:00:09]} 9. d5 {[%emt 0:01:17]} Na5 {[%emt 0:00:06]} 10. Nbd2 {[%emt 0:00:10]} b5 {[%emt 0:02:04]} 11. Bc2 {[%emt 0:03:34]} d6 {[%emt 0:00:07]} 12. Nb3 {[%emt 0:04:05]} Nc4 {[%emt 1:33:01]} 13. Nbd4 {[%emt 0:16:04]} Bg4 {[%emt 0:00:00]} 14. Rb1 {[%emt 0:06:23]} Ne5 {[%emt 0:00:00]} 15. h3 {[%emt 0:04:33]} Nxf3+ 16. Nxf3 {[%emt 0:00:04]} Bd7 {[%emt 0:00:00]} 17. Re1 {[%emt 0:06:41]} Rc8 {[%emt 0:00:00]} 18. Bf4 {[%emt 0:10:09]} Re8 {[%emt 0:00:00]} 19. Qd2 {[%emt 0:01:20]} c6 {[%emt 0:00:00]} 20. dxc6 {[%emt 0:05:35]} Rxc6 {[%emt 0:00:00]} 21. Bb3 {[%emt 0:01:54]} Nc8 {[%emt 0:00:00]} 22. Bxf7+ {[%emt 0:13:09]} Kxf7 {[%emt 0:00:00]} 23. Qd5+ {[%emt 0:00:19]} Ke7 {[%emt 0:00:00]} 24. Bg5+ {[%emt 0:02:44]} Bf6 {[%emt 0:00:00]} 25. e5 {[%emt 0:00:14]} Bxg5 {[%emt 0:00:00]} 26. Nxg5 {[%emt 0:02:19]} 1-0

[Event "7th Cattolica Open-A 2020"]
[Site "Cattolica"]
[Date "2020.09.08"]
[Round "9.8"]
[White "Alanic, Mickael"]
[Black "Kasioumis, Vasilios"]
[Result "0-1"]
[ECO "A35"]
[WhiteElo "2306"]
[BlackElo "2356"]
[Annotator "ChessBase"]
[PlyCount "90"]
[EventDate "2020.08.31"]
[EventType "swiss"]
[EventCountry "ITA"]
[SourceTitle "playchess.com"]
[Source "ChessBase"]
[SourceQuality "1"]
[TimeControl "5400+30"]

1. e4 {[%emt 0:00:00]} c5 {[%emt 0:00:00]} 2. Nf3 {[%emt 0:00:00]} d6 {[%emt 0:00:00]} 3. d4 {[%emt 0:00:32]} cxd4 {[%emt 0:00:00]} 4. Nxd4 {[%emt 0:00:06]} Nf6 {[%emt 0:00:00]} 5. Bd3 {[%emt 0:00:07]} Nc6 {[%emt 0:00:00]} 6. Nxc6 {[%emt 0:00:07]} bxc6 {[%emt 0:00:00]} 7. c4 {[%emt 0:00:08]} g6 {[%emt 0:00:28]} 8. Nc3 {[%emt 0:00:17]} Bg7 {[%emt 0:00:31]} 9. O-O {[%emt 0:00:16]} O-O {[%emt 0:00:20]} 10. Be2 {[%emt 0:00:57]} Rb8 {[%emt 0:06:44]} 11. Rb1 {[%emt 0:01:47]} Nd7 {[%emt 0:11:28]} 12. Qc2 {[%emt 0:10:24]} c5 {[%emt 0:06:05]} 13. f4 {[%emt 0:06:18]} Bb7 {[%emt 0:08:55]} 14. Bf3 {[%emt 0:06:43]} Bc6 {[%emt 0:06:58]} 15. b3 {[%emt 0:14:25]} Re8 {[%emt 0:06:23]} 16. Be3 {[%emt 0:14:11]} Qa5 {[%emt 0:09:18]} 17. Ne2 {[%emt 0:08:05]} Rb6 {[%emt 0:00:13]} 18. Rbd1 {[%emt 0:00:41]} Qa6 {[%emt 0:00:44]} 19. g4 {[%emt 0:15:22]} Qb7 {[%emt 0:00:17]} 20. Ng3 {[%emt 0:02:38]} a5 {[%emt 0:01:03]} 21. Rd3 {[%emt 0:05:25]} a4 {[%emt 0:03:40]} 22. g5 {[%emt 0:02:10]} Rb8 {[%emt 0:02:02]} 23. Bd1 {[%emt 0:00:07]} Bxe4 {[%emt 0:04:31]} 24. Nxe4 {[%emt 0:00:12]} Qxe4 {[%emt 0:00:05]} 25. Bf3 {[%emt 0:00:07]} axb3 {[%emt 0:03:32]} 26. axb3 {[%emt 0:00:16]} Qf5 {[%emt 0:00:21]} 27. Qd1 {[%emt 0:00:32]} Nf8 {[%emt 0:01:55]} 28. Bg4 {[%emt 0:00:12]} Qe4 {[%emt 0:00:07]} 29. Bf3 {[%emt 0:01:27]} Qe6 {[%emt 0:00:06]} 30. Bg4 {[%emt 0:00:39]} f5 {[%emt 0:00:35]} 31. gxf6 {[%emt 0:00:29]} Qxf6 {[%emt 0:00:06]} 32. f5 {[%emt 0:00:13]} Ra6 {[%emt 0:04:03]} 33. Bc1 {[%emt 0:04:39]} Ra2 {[%emt 0:05:02]} 34. fxg6 {[%emt 0:03:49]} Qxg6 {[%emt 0:00:04]} 35. Rg3 {[%emt 0:00:15]} Qc2 {[%emt 0:03:36]} 36. Qd5+ {[%emt 0:01:47]} e6 {[%emt 0:02:39]} 37. Qh5 {[%emt 0:00:35]} Kh8 {[%emt 0:02:47]} 38. Bh6 {[%emt 0:01:53]} Bd4+ {[%emt 0:02:54]} 39. Kh1 {[%emt 0:00:05]} Ng6 {[%emt 0:01:58]} 40. Bd1 {[%emt 0:01:18]} Qe4+ {[%emt 0:00:29]} 41. Bf3 {[%emt 0:00:00]} Qh4 {[%emt 0:00:00]} 42. Qxh4 {[%emt 0:00:00]} Nxh4 {[%emt 0:00:00]} 43. Bg4 {[%emt 0:00:00]} Rf2 {[%emt 0:00:00]} 44. Rxf2 {[%emt 0:00:00]} Bxf2 {[%emt 0:00:00]} 45. Rh3 {[%emt 0:00:00]} Rg8 {[%emt 0:00:00]} 0-1

[Event "7th Cattolica Open-A 2020"]
[Site "Cattolica"]
[Date "2020.09.08"]
[Round "9.9"]
[White "Le Goff, Damien"]
[Black "Louis, Corentin"]
[Result "1/2-1/2"]
[ECO "B52"]
[WhiteElo "2281"]
[BlackElo "2053"]
[Annotator "ChessBase"]
[PlyCount "45"]
[EventDate "2020.08.31"]
[EventType "swiss"]
[EventCountry "ITA"]
[SourceTitle "playchess.com"]
[Source "ChessBase"]
[SourceQuality "1"]
[TimeControl "5400+30"]

1. e4 {[%emt 0:00:42]} c5 {[%emt 0:00:00]} 2. Nf3 {[%emt 0:00:04]} d6 {[%emt 0:00:00]} 3. Bb5+ {[%emt 0:00:10]} Bd7 {[%emt 0:00:00]} 4. Bxd7+ {[%emt 0:00:07]} Qxd7 {[%emt 0:00:08]} 5. O-O {[%emt 0:00:06]} e6 {[%emt 0:00:50]} 6. c3 {[%emt 0:00:17]} Nc6 {[%emt 1:32:02]} 7. Re1 {[%emt 0:00:23]} Nf6 {[%emt 0:00:00]} 8. d4 {[%emt 0:00:35]} cxd4 {[%emt 0:00:00]} 9. cxd4 {[%emt 0:00:06]} d5 {[%emt 0:00:00]} 10. e5 {[%emt 0:00:38]} Ne4 {[%emt 0:00:00]} 11. a3 {[%emt 0:00:45]} Be7 {[%emt 0:00:00]} 12. Nbd2 {[%emt 0:00:06]} Nxd2 {[%emt 0:00:00]} 13. Bxd2 {[%emt 0:00:03]} O-O {[%emt 0:00:00]} 14. Rc1 {[%emt 0:00:09]} Rfc8 {[%emt 0:00:00]} 15. Re3 {[%emt 0:01:01]} Nd8 {[%emt 0:00:00]} 16. Rec3 {[%emt 0:00:07]} Rxc3 {[%emt 0:00:00]} 17. Rxc3 {[%emt 0:00:11]} Rc8 {[%emt 0:00:00]} 18. Qc1 {[%emt 0:00:11]} Rxc3 {[%emt 0:00:00]} 19. Qxc3 {[%emt 0:00:10]} Qc6 {[%emt 0:00:00]} 20. Qxc6 {[%emt 0:00:06]} Nxc6 {[%emt 0:00:00]} 21. Kf1 {[%emt 0:00:11]} a5 {[%emt 0:00:00]} 22. Ke2 {[%emt 0:00:23]} a4 {[%emt 0:00:00]} 23. Kd3 {[%emt 0:00:21]} 1/2-1/2